[Event "20th Corsican Circuit 2016-KO"]
[Site "Bastia"]
[Date "2016.10.27"]
[Round "1.1"]
[White "Anand, Viswanathan"]
[Black "Leenhouts, Koen"]
[Result "1-0"]
[ECO "B48"]
[WhiteElo "2776"]
[BlackElo "2492"]
[Annotator "Sagar Shah"]
[PlyCount "73"]
[EventDate "2016.??.??"]
[EventType "k.o."]
[EventCountry "FRA"]
[SourceTitle "playchess.com"]
[Source "ChessBase"]
[TimeControl "900+3"]

1. e4 {[%emt 0:00:00]} c5 {[%emt 0:00:00]} 2. Nf3 {[%emt 0:00:01]} e6 {[%emt 0:
00:04]} 3. d4 {[%emt 0:00:03]} cxd4 {[%emt 0:00:06]} 4. Nxd4 {[%emt 0:00:02]}
Nc6 {[%emt 0:00:04]} 5. Nc3 {[%emt 0:00:08]} Qc7 {[%emt 0:00:10]} 6. Be3 {
[%emt 0:00:06]} a6 {[%emt 0:00:04] Leenhouts goes for the Taimanov Variation
of the Sicilian.} 7. Qf3 $5 {[%emt 0:00:06] The move Qf3 is becoming quite
popular recently. The idea is to put the queen on g3 and prepare 0-0-0.} d6 {
[%emt 0:00:13]} 8. Nxc6 {[%emt 0:00:08]} bxc6 {[%emt 0:00:27]} 9. O-O-O {
[%emt 0:00:06]} Nf6 {[%emt 0:00:56]} 10. Qg3 {[%emt 0:00:58]} Nh5 {[%emt 0:01:
35]} 11. Qh4 {[%emt 0:00:56]} Nf6 {[%emt 0:00:36]} 12. g4 {[%emt 0:00:04]} Be7
{[%emt 0:00:42]} 13. g5 {[%emt 0:00:24]} Nd7 {[%emt 0:00:20]} 14. f4 {[%emt 0:
01:15]} Rb8 {[%emt 0:00:36] It's an interesting position as White has expanded
on the kingisde and Black has counterplay down the b-file. But b3 will block
out Black's attack, while White's offensive is not so easy to prepare against.}
15. Qg3 {[%emt 0:02:37]} d5 {[%emt 0:02:35]} 16. f5 $6 {[%emt 0:01:00]} (16.
Kb1 {was safer}) 16... Bd6 $1 {[%emt 0:00:42] Keeping the queens on is a
better idea for Black.} (16... Qxg3 17. hxg3 {is better for White.}) 17. Qh3 {
[%emt 0:01:52]} Ne5 {[%emt 0:01:08]} 18. f6 {[%emt 0:00:13]} g6 {[%emt 0:00:42]
} (18... gxf6 19. gxf6 Ng6 {The computer thinks this is better for Black. But
in a rapid game with the king in the center, it doesn't look a very secure
position.}) 19. Qg2 {[%emt 0:00:26]} Qa5 {[%emt 0:00:39]} 20. Bd2 {[%emt 0:00:
45]} Qb4 $2 {[%emt 0:00:19] A serious error by Koen...} {[%tqu "En","White to
play and win.","","","b2b3","...which goes unpunished.",10,"c3b5","just wins a
piece.",0]} 21. b3 $2 {[%emt 0:00:05] ...which goes unpunished.} (21. Nb5 $1 {
just wins a piece.} Qc5 22. b4 $18) 21... Qa3+ {[%emt 0:00:05]} 22. Kb1 {
[%emt 0:00:02]} d4 {[%emt 0:00:55]} 23. h4 {[%emt 0:00:26]} (23. Bc1 Qb4 24.
Ne2 $14) 23... dxc3 {[%emt 0:00:32]} 24. Bxc3 {[%emt 0:00:01] A great
practical decision. Black is put under pressure. True he is a piece up, but it
is extremely difficult to find the right moves.} O-O $2 {[%emt 0:02:00] This
is like jumping into the fire.} (24... Qc5 $15) 25. Qg3 {[%emt 0:00:24]} (25.
h5 {straight away was also possible.}) 25... Nc4 {[%emt 0:00:21]} 26. e5 {
[%emt 0:00:06]} Bxe5 {[%emt 0:00:21]} 27. Bxe5 {[%emt 0:00:02]} Nxe5 {[%emt 0:
00:02]} 28. Qxe5 {[%emt 0:00:01] White has a material equality and a very
strong attack with h5. This is all over.} Bb7 {[%emt 0:00:03]} 29. h5 {[%emt 0:
00:11]} c5 {[%emt 0:00:02]} {[%tqu "En","The question is: will you sacrifice
the rook?","","","h5g6","",10]} 30. hxg6 {[%emt 0:00:25]} Bxh1 {[%emt 0:00:03]}
31. Qh2 {[%emt 0:00:19]} fxg6 {[%emt 0:00:02]} 32. Rd7 {[%emt 0:00:07] Sharp
play by Anand. Not so difficult for him to calculate though.} h5 {[%emt 0:00:
06]} 33. Rg7+ {[%emt 0:00:22]} Kh8 {[%emt 0:00:01]} 34. Qxh1 {[%emt 0:00:05]} (
34. Be2 $4 Be4 35. Bxh5 Rxb3+ $11 {just in time!}) 34... Rbd8 {[%emt 0:00:01]}
35. Be2 {[%emt 0:00:04]} Qa5 {[%emt 0:00:07]} 36. Bxh5 {[%emt 0:00:09]} gxh5 {
[%emt 0:00:05]} 37. Qxh5# {[%emt 0:00:02]} 1-0